[Event "Titled Tuesday Blitz March 22 Late 2022"]
[White "Tabatabaei, M. Amin"]
[Black "Shuvalova, Polina"]
[WhiteFideId "12521213"]
[BlackFideId "24171760"]
[WhiteElo "2544"]
[BlackElo "2355"]
[Result "1/2-1/2"]
[Round "04"]
[TimeControl "180+1"]
[Date "2022.03.22"]
[WhiteClock "0:00:50"]
[BlackClock "0:00:09"]

1. b4 {[%clk 0:03:00]}  Nf6 {[%clk 0:02:57]} 2. Bb2 {[%clk 0:03:01]}  e6 {[%clk 0:02:57]} 3. a3 {[%clk 0:03:01]}  d5 {[%clk 0:02:57]} 4. Nf3 {[%clk 0:03:01]}  Be7 {[%clk 0:02:58]} 5. e3 {[%clk 0:03:02]}  O-O {[%clk 0:02:58]} 6. c4 {[%clk 0:03:03]}  b6 {[%clk 0:02:52]} 7. Nc3 {[%clk 0:03:02]}  Bb7 {[%clk 0:02:52]} 8. d4 {[%clk 0:03:03]}  c5 {[%clk 0:02:48]} 9. dxc5 {[%clk 0:03:04]}  bxc5 {[%clk 0:02:48]} 10. b5 {[%clk 0:03:05]}  Nbd7 {[%clk 0:02:45]} 11. a4 {[%clk 0:03:05]}  a5 {[%clk 0:02:42]} 12. Be2 {[%clk 0:03:05]}  Nb6 {[%clk 0:02:41]} 13. Qb3 {[%clk 0:03:04]}  Qc7 {[%clk 0:02:32]} 14. Rd1 {[%clk 0:02:58]}  Rfd8 {[%clk 0:02:32]} 15. O-O {[%clk 0:02:57]}  h6 {[%clk 0:02:24]} 16. h3 {[%clk 0:02:55]}  Rac8 {[%clk 0:02:14]} 17. Rfe1 {[%clk 0:02:54]}  Rd7 {[%clk 0:01:44]} 18. Nb1 {[%clk 0:02:48]}  dxc4 {[%clk 0:01:40]} 19. Bxc4 {[%clk 0:02:48]}  Rcd8 {[%clk 0:01:34]} 20. Rxd7 {[%clk 0:02:38]}  Qxd7 {[%clk 0:01:28]} 21. Ne5 {[%clk 0:02:34]}  Qc7 {[%clk 0:01:28]} 22. Bf1 {[%clk 0:02:21]}  Ne4 {[%clk 0:01:21]} 23. Nc4 {[%clk 0:02:11]}  Nxc4 {[%clk 0:01:17]} 24. Bxc4 {[%clk 0:02:11]}  Bf6 {[%clk 0:01:13]} 25. Bxf6 {[%clk 0:02:10]}  Nxf6 {[%clk 0:01:11]} 26. Rd1 {[%clk 0:02:09]}  Rd6 {[%clk 0:01:00]} 27. Nc3 {[%clk 0:02:05]}  Ne4 {[%clk 0:00:57]} 28. Nxe4 {[%clk 0:01:57]}  Bxe4 {[%clk 0:00:58]} 29. Be2 {[%clk 0:01:52]}  Rxd1+ {[%clk 0:00:55]} 30. Qxd1 {[%clk 0:01:52]}  c4 {[%clk 0:00:54]} 31. Bf3 {[%clk 0:01:37]}  Bxf3 {[%clk 0:00:51]} 32. Qxf3 {[%clk 0:01:34]}  c3 {[%clk 0:00:49]} 33. Qa8+ {[%clk 0:01:35]}  Kh7 {[%clk 0:00:49]} 34. Qe4+ {[%clk 0:01:35]}  f5 {[%clk 0:00:47]} 35. Qc2 {[%clk 0:01:36]}  Qc5 {[%clk 0:00:47]} 36. b6 {[%clk 0:01:35]}  Qxb6 {[%clk 0:00:45]} 37. Qxc3 {[%clk 0:01:36]}  Kg6 {[%clk 0:00:38]} 38. g3 {[%clk 0:01:23]}  Kf7 {[%clk 0:00:37]} 39. Qc2 {[%clk 0:01:17]}  Qb4 {[%clk 0:00:33]} 40. h4 {[%clk 0:01:17]}  h5 {[%clk 0:00:31]} 41. Kf1 {[%clk 0:01:16]}  g6 {[%clk 0:00:30]} 42. Ke2 {[%clk 0:01:17]}  Ke7 {[%clk 0:00:29]} 43. Qc7+ {[%clk 0:01:16]}  Kf6 {[%clk 0:00:29]} 44. Qc6 {[%clk 0:01:17]}  Qb2+ {[%clk 0:00:28]} 45. Kf3 {[%clk 0:01:16]}  Qb4 {[%clk 0:00:27]} 46. Qc2 {[%clk 0:01:06]}  Qb7+ {[%clk 0:00:26]} 47. Ke2 {[%clk 0:01:06]}  Qb4 {[%clk 0:00:26]} 48. Kd3 {[%clk 0:01:04]}  Qe4+ {[%clk 0:00:25]} 49. Kd2 {[%clk 0:01:03]}  Qxc2+ {[%clk 0:00:19]} 50. Kxc2 {[%clk 0:01:04]}  Ke5 {[%clk 0:00:20]} 51. Kd3 {[%clk 0:01:00]}  Kd5 {[%clk 0:00:20]} 52. f3 {[%clk 0:00:59]}  e5 {[%clk 0:00:18]} 53. e4+ {[%clk 0:00:54]}  fxe4+ {[%clk 0:00:11]} 54. fxe4+ {[%clk 0:00:55]}  Kc5 {[%clk 0:00:09]} 55. Kc3 {[%clk 0:00:55]}  Kb6 {[%clk 0:00:10]} 56. Kc2 {[%clk 0:00:54]}  Kc6 {[%clk 0:00:08]} 57. Kb3 {[%clk 0:00:53]}  Kc5 {[%clk 0:00:09]} 58. Kc3 {[%clk 0:00:53]}  Kb6 {[%clk 0:00:10]} 59. Kd2 {[%clk 0:00:50]}  Kc5 {[%clk 0:00:09]} 60. Kc3 {[%clk 0:00:50]} 1/2-1/2


[Site "https://www.chess.com"]

[Event "Titled Tuesday Blitz March 22 Late 2022"]
[White "Tanenbaum, Zachary"]
[Black "Svane, Rasmus"]
[WhiteFideId "2060850"]
[BlackFideId "4657101"]
[WhiteElo "2168"]
[BlackElo "2645"]
[Result "0-1"]
[Round "04"]
[TimeControl "180+1"]
[Date "2022.03.22"]
[WhiteClock "0:00:04"]
[BlackClock "0:00:36"]

1. e4 {[%clk 0:03:00]}  e5 {[%clk 0:02:57]} 2. Nf3 {[%clk 0:03:00]}  Nc6 {[%clk 0:02:57]} 3. Bc4 {[%clk 0:03:00]}  Bc5 {[%clk 0:02:57]} 4. c3 {[%clk 0:02:59]}  Nf6 {[%clk 0:02:57]} 5. d3 {[%clk 0:03:00]}  d6 {[%clk 0:02:57]} 6. Nbd2 {[%clk 0:03:00]}  a5 {[%clk 0:02:56]} 7. a4 {[%clk 0:03:00]}  O-O {[%clk 0:02:54]} 8. Nf1 {[%clk 0:02:59]}  Be6 {[%clk 0:02:54]} 9. Bxe6 {[%clk 0:02:59]}  fxe6 {[%clk 0:02:55]} 10. Ng3 {[%clk 0:02:59]}  Qd7 {[%clk 0:02:53]} 11. O-O {[%clk 0:02:59]}  h6 {[%clk 0:02:52]} 12. Be3 {[%clk 0:02:57]}  Bxe3 {[%clk 0:02:47]} 13. fxe3 {[%clk 0:02:58]}  d5 {[%clk 0:02:47]} 14. Nd2 {[%clk 0:02:57]}  Rad8 {[%clk 0:02:44]} 15. Qb3 {[%clk 0:02:46]}  b6 {[%clk 0:02:44]} 16. d4 {[%clk 0:02:43]}  Kh8 {[%clk 0:02:28]} 17. Rad1 {[%clk 0:02:24]}  Ng4 {[%clk 0:02:21]} 18. Rde1 {[%clk 0:02:14]}  Rxf1+ {[%clk 0:02:19]} 19. Ndxf1 {[%clk 0:02:13]}  Rf8 {[%clk 0:02:14]} 20. Qd1 {[%clk 0:02:09]}  Nf6 {[%clk 0:02:08]} 21. Nd2 {[%clk 0:02:03]}  Qf7 {[%clk 0:02:00]} 22. Rf1 {[%clk 0:02:01]}  Qg6 {[%clk 0:01:56]} 23. Qb1 {[%clk 0:01:14]}  Qg5 {[%clk 0:01:50]} 24. Rf3 {[%clk 0:01:07]}  Re8 {[%clk 0:01:49]} 25. exd5 {[%clk 0:00:38]}  exd5 {[%clk 0:01:47]} 26. Qf5 {[%clk 0:00:38]}  Qxf5 {[%clk 0:01:29]} 27. Rxf5 {[%clk 0:00:39]}  Kh7 {[%clk 0:01:26]} 28. h3 {[%clk 0:00:35]}  Re6 {[%clk 0:01:21]} 29. Nf3 {[%clk 0:00:31]}  g6 {[%clk 0:01:17]} 30. Rg5 {[%clk 0:00:21]}  exd4 {[%clk 0:01:02]} 31. exd4 {[%clk 0:00:20]}  Kg7 {[%clk 0:01:01]} 32. Re5 {[%clk 0:00:15]}  Nxe5 {[%clk 0:01:01]} 33. Nxe5 {[%clk 0:00:15]}  c5 {[%clk 0:00:55]} 34. Kf2 {[%clk 0:00:14]}  Re7 {[%clk 0:00:50]} 35. Kf3 {[%clk 0:00:10]}  cxd4 {[%clk 0:00:49]} 36. cxd4 {[%clk 0:00:11]}  Rc7 {[%clk 0:00:49]} 37. Ne2 {[%clk 0:00:08]}  Rc2 {[%clk 0:00:49]} 38. Nf4 {[%clk 0:00:08]}  g5 {[%clk 0:00:43]} 39. Ne6+ {[%clk 0:00:08]}  Kg8 {[%clk 0:00:44]} 40. g4 {[%clk 0:00:04]}  Rxb2 {[%clk 0:00:43]} 41. Nc7 {[%clk 0:00:04]}  Rb3+ {[%clk 0:00:42]} 42. Kg2 {[%clk 0:00:03]}  Rb4 {[%clk 0:00:42]} 43. Na8 {[%clk 0:00:03]}  Rxa4 {[%clk 0:00:41]} 44. Nxb6 {[%clk 0:00:03]}  Rxd4 {[%clk 0:00:41]} 45. Nc6 {[%clk 0:00:03]}  Rd2+ {[%clk 0:00:39]} 46. Kf3 {[%clk 0:00:04]}  Rd3+ {[%clk 0:00:39]} 47. Ke2 {[%clk 0:00:04]}  Rxh3 {[%clk 0:00:38]} 48. Nxa5 {[%clk 0:00:04]}  d4 {[%clk 0:00:37]} 49. Nc6 {[%clk 0:00:03]}  d3+ {[%clk 0:00:37]} 50. Kd2 {[%clk 0:00:04]}  Ne4+ {[%clk 0:00:36]} 0-1


[Site "https://www.chess.com"]

[Event "Titled Tuesday Blitz March 22 Late 2022"]
[White "Tari, Aryan"]
[Black "Matinian, Nikita"]
[WhiteFideId "1510045"]
[BlackFideId "24129100"]
[WhiteElo "2567"]
[BlackElo "2422"]
[Result "0-1"]
[Round "04"]
[TimeControl "180+1"]
[Date "2022.03.22"]
[WhiteClock "0:00:18"]
[BlackClock "0:00:05"]

1. d4 {[%clk 0:02:59]}  Nf6 {[%clk 0:02:59]} 2. Nf3 {[%clk 0:02:59]}  g6 {[%clk 0:02:59]} 3. Bg5 {[%clk 0:02:40]}  Bg7 {[%clk 0:02:59]} 4. Nbd2 {[%clk 0:02:40]}  d5 {[%clk 0:02:59]} 5. e3 {[%clk 0:02:39]}  O-O {[%clk 0:02:59]} 6. Bd3 {[%clk 0:02:39]}  b6 {[%clk 0:03:00]} 7. a4 {[%clk 0:02:38]}  c5 {[%clk 0:02:54]} 8. c3 {[%clk 0:02:33]}  Nc6 {[%clk 0:02:54]} 9. h3 {[%clk 0:01:58]}  h6 {[%clk 0:02:51]} 10. Bf4 {[%clk 0:01:57]}  Bb7 {[%clk 0:02:45]} 11. Ne5 {[%clk 0:01:47]}  Nd7 {[%clk 0:02:35]} 12. Nxd7 {[%clk 0:01:31]}  Qxd7 {[%clk 0:02:34]} 13. Nf3 {[%clk 0:01:31]}  Rae8 {[%clk 0:02:28]} 14. O-O {[%clk 0:01:31]}  g5 {[%clk 0:02:26]} 15. Bh2 {[%clk 0:01:24]}  c4 {[%clk 0:02:15]} 16. Bc2 {[%clk 0:01:22]}  f5 {[%clk 0:02:13]} 17. b3 {[%clk 0:01:15]}  cxb3 {[%clk 0:02:05]} 18. Bxb3 {[%clk 0:01:15]}  Ba6 {[%clk 0:02:05]} 19. Re1 {[%clk 0:01:13]}  e6 {[%clk 0:01:56]} 20. Bc2 {[%clk 0:00:48]}  Bc4 {[%clk 0:01:47]} 21. Bd3 {[%clk 0:00:46]}  Bxd3 {[%clk 0:01:45]} 22. Qxd3 {[%clk 0:00:47]}  Rc8 {[%clk 0:01:41]} 23. Qb5 {[%clk 0:00:37]}  Rf7 {[%clk 0:01:41]} 24. c4 {[%clk 0:00:37]}  Na5 {[%clk 0:01:38]} 25. cxd5 {[%clk 0:00:36]}  Qxb5 {[%clk 0:01:18]} 26. axb5 {[%clk 0:00:36]}  exd5 {[%clk 0:01:19]} 27. Rec1 {[%clk 0:00:37]}  Rc4 {[%clk 0:01:17]} 28. Nd2 {[%clk 0:00:35]}  Rxc1+ {[%clk 0:01:00]} 29. Rxc1 {[%clk 0:00:36]}  f4 {[%clk 0:01:01]} 30. g4 {[%clk 0:00:27]}  Re7 {[%clk 0:01:01]} 31. Rc3 {[%clk 0:00:20]}  Kf7 {[%clk 0:00:30]} 32. Kf1 {[%clk 0:00:20]}  Ke8 {[%clk 0:00:25]} 33. Rc8+ {[%clk 0:00:18]}  Kd7 {[%clk 0:00:24]} 34. Ra8 {[%clk 0:00:19]}  Ke6 {[%clk 0:00:16]} 35. exf4 {[%clk 0:00:19]}  gxf4 {[%clk 0:00:17]} 36. Nf3 {[%clk 0:00:19]}  Rf7 {[%clk 0:00:10]} 37. Re8+ {[%clk 0:00:20]}  Kd7 {[%clk 0:00:10]} 38. Ra8 {[%clk 0:00:20]}  Ke6 {[%clk 0:00:10]} 39. Ke2 {[%clk 0:00:21]}  Nc4 {[%clk 0:00:10]} 40. Re8+ {[%clk 0:00:20]}  Kd7 {[%clk 0:00:10]} 41. Ra8 {[%clk 0:00:21]}  Ke6 {[%clk 0:00:10]} 42. g5 {[%clk 0:00:17]}  Nd6 {[%clk 0:00:09]} 43. Rh8 {[%clk 0:00:18]}  Nf5 {[%clk 0:00:03]} 44. gxh6 {[%clk 0:00:19]}  Bxh6 {[%clk 0:00:02]} 45. Rxh6+ {[%clk 0:00:16]}  Nxh6 {[%clk 0:00:03]} 46. Ng5+ {[%clk 0:00:17]}  Kf5 {[%clk 0:00:04]} 47. Nxf7 {[%clk 0:00:17]}  Nxf7 {[%clk 0:00:04]} 48. h4 {[%clk 0:00:17]}  Nd6 {[%clk 0:00:05]} 49. Kf3 {[%clk 0:00:17]}  Nxb5 {[%clk 0:00:05]} 50. Bxf4 {[%clk 0:00:18]}  Nxd4+ {[%clk 0:00:05]} 51. Kg3 {[%clk 0:00:18]}  Ne2+ {[%clk 0:00:05]} 0-1


[Site "https://www.chess.com"]

[Event "Titled Tuesday Blitz March 22 Late 2022"]
[White "Tsukerman, Julia"]
[Black "Donchenko, Anatoly"]
[WhiteFideId "2621649"]
[BlackFideId "4106091"]
[WhiteElo "2109"]
[BlackElo "2339"]
[Result "1/2-1/2"]
[Round "04"]
[TimeControl "180+1"]
[Date "2022.03.22"]
[WhiteClock "0:00:17"]
[BlackClock "0:00:25"]

1. e4 {[%clk 0:03:00]}  c5 {[%clk 0:02:58]} 2. Nf3 {[%clk 0:03:00]}  d6 {[%clk 0:02:58]} 3. d4 {[%clk 0:03:01]}  cxd4 {[%clk 0:02:58]} 4. Nxd4 {[%clk 0:03:02]}  Nf6 {[%clk 0:02:57]} 5. Nc3 {[%clk 0:03:02]}  a6 {[%clk 0:02:57]} 6. Be3 {[%clk 0:03:02]}  e6 {[%clk 0:02:56]} 7. f3 {[%clk 0:03:03]}  h5 {[%clk 0:02:55]} 8. Qd2 {[%clk 0:03:03]}  b5 {[%clk 0:02:55]} 9. O-O-O {[%clk 0:03:03]}  Bb7 {[%clk 0:02:55]} 10. Rg1 {[%clk 0:03:00]}  Nbd7 {[%clk 0:02:53]} 11. Kb1 {[%clk 0:02:57]}  Rc8 {[%clk 0:02:50]} 12. g3 {[%clk 0:02:53]}  Ne5 {[%clk 0:02:48]} 13. h3 {[%clk 0:02:45]}  Be7 {[%clk 0:02:43]} 14. g4 {[%clk 0:02:43]}  hxg4 {[%clk 0:02:40]} 15. hxg4 {[%clk 0:02:41]}  Qc7 {[%clk 0:02:26]} 16. Be2 {[%clk 0:02:13]}  Nc4 {[%clk 0:02:21]} 17. Bxc4 {[%clk 0:02:12]}  Qxc4 {[%clk 0:02:21]} 18. Rh1 {[%clk 0:02:03]}  Rxh1 {[%clk 0:02:15]} 19. Rxh1 {[%clk 0:02:02]}  b4 {[%clk 0:02:15]} 20. Nce2 {[%clk 0:01:58]}  a5 {[%clk 0:02:01]} 21. c3 {[%clk 0:01:39]}  bxc3 {[%clk 0:01:53]} 22. Nxc3 {[%clk 0:01:39]}  Ba6 {[%clk 0:01:48]} 23. Rc1 {[%clk 0:01:14]}  Qd3+ {[%clk 0:01:44]} 24. Qxd3 {[%clk 0:01:13]}  Bxd3+ {[%clk 0:01:44]} 25. Ka1 {[%clk 0:01:14]}  Kd7 {[%clk 0:01:42]} 26. a3 {[%clk 0:01:13]}  g6 {[%clk 0:01:39]} 27. Nce2 {[%clk 0:01:10]}  Rxc1+ {[%clk 0:01:37]} 28. Nxc1 {[%clk 0:01:09]}  Ba6 {[%clk 0:01:36]} 29. Ncb3 {[%clk 0:01:09]}  Bd8 {[%clk 0:01:31]} 30. Bd2 {[%clk 0:01:04]}  a4 {[%clk 0:01:30]} 31. Nc1 {[%clk 0:00:59]}  e5 {[%clk 0:01:29]} 32. Nc2 {[%clk 0:00:56]}  Bc7 {[%clk 0:01:18]} 33. Na2 {[%clk 0:00:56]}  Be2 {[%clk 0:01:14]} 34. Ne1 {[%clk 0:00:53]}  d5 {[%clk 0:01:07]} 35. Nc3 {[%clk 0:00:52]}  Bc4 {[%clk 0:01:03]} 36. exd5 {[%clk 0:00:49]}  Nxd5 {[%clk 0:01:02]} 37. Nxa4 {[%clk 0:00:49]}  f5 {[%clk 0:00:53]} 38. gxf5 {[%clk 0:00:45]}  gxf5 {[%clk 0:00:53]} 39. Nc3 {[%clk 0:00:40]}  Nxc3 {[%clk 0:00:50]} 40. Bxc3 {[%clk 0:00:40]}  Ke6 {[%clk 0:00:49]} 41. Kb1 {[%clk 0:00:37]}  Be2 {[%clk 0:00:47]} 42. b4 {[%clk 0:00:34]}  Bb6 {[%clk 0:00:47]} 43. a4 {[%clk 0:00:30]}  Kd5 {[%clk 0:00:45]} 44. Kc2 {[%clk 0:00:20]}  Be3 {[%clk 0:00:43]} 45. b5 {[%clk 0:00:19]}  Kc4 {[%clk 0:00:41]} 46. Bxe5 {[%clk 0:00:18]}  Kb4 {[%clk 0:00:36]} 47. Bc7 {[%clk 0:00:18]}  Kxa4 {[%clk 0:00:35]} 48. b6 {[%clk 0:00:19]}  Ba6 {[%clk 0:00:33]} 49. Nd3 {[%clk 0:00:18]}  Kb5 {[%clk 0:00:30]} 50. f4 {[%clk 0:00:16]}  Kc6 {[%clk 0:00:29]} 51. Ne5+ {[%clk 0:00:16]}  Kb7 {[%clk 0:00:29]} 52. Ng6 {[%clk 0:00:15]}  Bxb6 {[%clk 0:00:28]} 53. Bxb6 {[%clk 0:00:14]}  Kxb6 {[%clk 0:00:29]} 54. Ne7 {[%clk 0:00:15]}  Kc5 {[%clk 0:00:27]} 55. Nxf5 {[%clk 0:00:15]}  Kd5 {[%clk 0:00:27]} 56. Ne3+ {[%clk 0:00:15]}  Ke4 {[%clk 0:00:26]} 57. f5 {[%clk 0:00:16]}  Kxe3 {[%clk 0:00:25]} 58. f6 {[%clk 0:00:17]}  Bc4 {[%clk 0:00:25]} 59. f7 {[%clk 0:00:17]}  Bxf7 {[%clk 0:00:25]} 1/2-1/2


[Site "https://www.chess.com"]

[Event "Titled Tuesday Blitz March 22 Late 2022"]
[White "Urazayev, Arystanbek"]
[Black "Paravyan, David"]
[WhiteFideId "13709810"]
[BlackFideId "4194985"]
[WhiteElo "2393"]
[BlackElo "2569"]
[Result "0-1"]
[Round "04"]
[TimeControl "180+1"]
[Date "2022.03.22"]
[WhiteClock "0:00:02"]
[BlackClock "0:00:12"]

1. d4 {[%clk 0:03:00]}  Nf6 {[%clk 0:03:00]} 2. c4 {[%clk 0:03:01]}  g6 {[%clk 0:03:00]} 3. Nc3 {[%clk 0:03:01]}  d5 {[%clk 0:03:01]} 4. Nf3 {[%clk 0:03:00]}  Bg7 {[%clk 0:03:01]} 5. cxd5 {[%clk 0:03:01]}  Nxd5 {[%clk 0:03:02]} 6. e4 {[%clk 0:03:01]}  Nxc3 {[%clk 0:03:03]} 7. bxc3 {[%clk 0:03:02]}  c5 {[%clk 0:03:03]} 8. Bb5+ {[%clk 0:03:02]}  Nc6 {[%clk 0:03:03]} 9. d5 {[%clk 0:03:03]}  Qa5 {[%clk 0:02:56]} 10. Rb1 {[%clk 0:02:59]}  a6 {[%clk 0:02:55]} 11. Ba4 {[%clk 0:02:58]}  b5 {[%clk 0:02:54]} 12. dxc6 {[%clk 0:02:58]}  Be6 {[%clk 0:02:38]} 13. Bb3 {[%clk 0:02:43]}  Bxc3+ {[%clk 0:02:16]} 14. Bd2 {[%clk 0:02:26]}  c4 {[%clk 0:02:04]} 15. Bc2 {[%clk 0:02:22]}  O-O-O {[%clk 0:02:01]} 16. a4 {[%clk 0:01:40]}  Bg4 {[%clk 0:01:55]} 17. O-O {[%clk 0:01:29]}  Rxd2 {[%clk 0:01:44]} 18. Qc1 {[%clk 0:01:29]}  Bxf3 {[%clk 0:01:32]} 19. axb5 {[%clk 0:01:27]}  axb5 {[%clk 0:01:18]} 20. gxf3 {[%clk 0:01:27]}  b4 {[%clk 0:01:17]} 21. e5 {[%clk 0:01:23]}  Kc7 {[%clk 0:01:10]} 22. Be4 {[%clk 0:01:20]}  Rb8 {[%clk 0:01:07]} 23. f4 {[%clk 0:01:19]}  Qa3 {[%clk 0:01:04]} 24. Qe1 {[%clk 0:01:11]}  Qa7 {[%clk 0:00:47]} 25. Kh1 {[%clk 0:00:56]}  Qd4 {[%clk 0:00:44]} 26. Bg2 {[%clk 0:00:40]}  Ra8 {[%clk 0:00:42]} 27. Qe4 {[%clk 0:00:15]}  Qxe4 {[%clk 0:00:41]} 28. Bxe4 {[%clk 0:00:15]}  e6 {[%clk 0:00:40]} 29. Rfc1 {[%clk 0:00:12]}  Ra3 {[%clk 0:00:39]} 30. Kg2 {[%clk 0:00:11]}  Kc8 {[%clk 0:00:20]} 31. Rd1 {[%clk 0:00:10]}  Raa2 {[%clk 0:00:18]} 32. Rxd2 {[%clk 0:00:05]}  Rxd2 {[%clk 0:00:19]} 33. Rc1 {[%clk 0:00:04]}  Kc7 {[%clk 0:00:19]} 34. Rb1 {[%clk 0:00:04]}  Rd4 {[%clk 0:00:16]} 35. Kf3 {[%clk 0:00:04]}  b3 {[%clk 0:00:14]} 36. Rc1 {[%clk 0:00:02]}  Bb2 {[%clk 0:00:12]} 0-1


[Site "https://www.chess.com"]

[Event "Titled Tuesday Blitz March 22 Late 2022"]
[White "Vovk, Orest"]
[Black "Cavanah, Troy"]
[WhiteFideId "14113490"]
[BlackFideId "30949670"]
[WhiteElo "2203"]
[BlackElo "1878"]
[Result "1-0"]
[Round "04"]
[TimeControl "180+1"]
[Date "2022.03.22"]
[WhiteClock "0:01:32"]
[BlackClock "0:00:21"]

1. d4 {[%clk 0:03:00]}  Nf6 {[%clk 0:02:59]} 2. Bg5 {[%clk 0:03:00]}  d5 {[%clk 0:02:59]} 3. Bxf6 {[%clk 0:02:58]}  exf6 {[%clk 0:03:00]} 4. Nf3 {[%clk 0:02:59]}  c6 {[%clk 0:03:00]} 5. e3 {[%clk 0:02:59]}  Bd6 {[%clk 0:03:01]} 6. c4 {[%clk 0:02:59]}  O-O {[%clk 0:03:01]} 7. cxd5 {[%clk 0:02:59]}  cxd5 {[%clk 0:03:01]} 8. Nc3 {[%clk 0:03:00]}  Nc6 {[%clk 0:02:58]} 9. Bd3 {[%clk 0:03:00]}  a6 {[%clk 0:02:57]} 10. O-O {[%clk 0:02:57]}  Bc7 {[%clk 0:02:56]} 11. Rc1 {[%clk 0:02:53]}  Bg4 {[%clk 0:02:52]} 12. Be2 {[%clk 0:02:53]}  Qd6 {[%clk 0:02:49]} 13. g3 {[%clk 0:02:52]}  b5 {[%clk 0:02:44]} 14. Ne1 {[%clk 0:02:50]}  Bxe2 {[%clk 0:02:36]} 15. Qxe2 {[%clk 0:02:47]}  Ne7 {[%clk 0:02:31]} 16. Qf3 {[%clk 0:02:43]}  Rac8 {[%clk 0:02:30]} 17. Nd3 {[%clk 0:02:43]}  Ba5 {[%clk 0:02:23]} 18. Nc5 {[%clk 0:02:41]}  Bb4 {[%clk 0:02:18]} 19. Nd3 {[%clk 0:02:32]}  Rc4 {[%clk 0:02:14]} 20. Ne2 {[%clk 0:02:29]}  Rfc8 {[%clk 0:02:12]} 21. a3 {[%clk 0:02:24]}  Ba5 {[%clk 0:01:54]} 22. b4 {[%clk 0:02:21]}  Rxc1 {[%clk 0:01:39]} 23. Rxc1 {[%clk 0:02:20]}  Rxc1+ {[%clk 0:01:40]} 24. Nexc1 {[%clk 0:02:20]}  Bb6 {[%clk 0:01:35]} 25. Nb3 {[%clk 0:02:20]}  Qc6 {[%clk 0:01:29]} 26. Nbc5 {[%clk 0:02:19]}  Nc8 {[%clk 0:01:26]} 27. Nf4 {[%clk 0:02:15]}  Bxc5 {[%clk 0:01:21]} 28. dxc5 {[%clk 0:02:15]}  Ne7 {[%clk 0:01:19]} 29. Ne2 {[%clk 0:02:15]}  Qd7 {[%clk 0:01:02]} 30. Nd4 {[%clk 0:02:13]}  Nc6 {[%clk 0:01:00]} 31. Nxc6 {[%clk 0:02:05]}  Qxc6 {[%clk 0:01:00]} 32. Qf4 {[%clk 0:02:06]}  g6 {[%clk 0:00:53]} 33. Qb8+ {[%clk 0:02:03]}  Kg7 {[%clk 0:00:51]} 34. Qb6 {[%clk 0:02:03]}  Qe8 {[%clk 0:00:39]} 35. c6 {[%clk 0:01:52]}  d4 {[%clk 0:00:33]} 36. c7 {[%clk 0:01:38]}  d3 {[%clk 0:00:32]} 37. Qb8 {[%clk 0:01:34]}  d2 {[%clk 0:00:23]} 38. Qxe8 {[%clk 0:01:33]}  d1=Q+ {[%clk 0:00:23]} 39. Kg2 {[%clk 0:01:33]}  Qd5+ {[%clk 0:00:21]} 40. e4 {[%clk 0:01:32]} 1-0


[Site "https://www.chess.com"]